fUST/lending_fUST_20250929
["ID","MTS","AMOUNT","RATE_DAILY","PERIOD"]
[388321395,1759090233139,-578.72207258,0.00033011,7]
[388321397,1759090233158,-578.72207258,0.00033011,7]
[388321399,1759090233167,-578.72207258,0.00033011,7]
[388321401,1759090233177,-578.72207258,0.00033011,7]
[388321403,1759090233186,-578.72207258,0.00033011,7]
[388321405,1759090233195,-500.0,0.00033013,120]
[388321407,1759090233204,-168.0,0.00033064,2]
[388321409,1759090233213,-199.0,0.0003307,16]
[388321411,1759090233223,-591.7,0.0003315,120]
[388321413,1759090233232,-150.0,0.000332,15]
[388321415,1759090233241,-168.0,0.00033242,2]
[388321419,1759090233251,-267.95754637,0.00033247,2]
[388321421,1759090233261,-385.4730079,0.00033247,2]
[388321423,1759090233270,-338.48162128,0.00033247,2]
[388321425,1759090233279,-233.82138094,0.00033263,2]
[388321427,1759090233288,-160.0,0.00033263,2]
[388321429,1759090233298,-160.0,0.00033263,2]
[388321431,1759090233308,-160.0,0.00033263,2]
[388321433,1759090233317,-160.0,0.00033263,2]
[388321435,1759090233326,-160.0,0.00033263,2]
[388321437,1759090233337,-417.15472785,0.00033263,2]
[388321439,1759090233345,-151.0,0.00033469,2]
[388321441,1759090233355,-151.0,0.00033469,2]
[388321443,1759090233365,-151.0,0.00033469,2]
[388321445,1759090233375,-198.0,0.00033469,2]
[388321447,1759090233384,-169.14,0.00033535,10]
[388321449,1759090233394,-3008.69896173,0.00033545,2]
[388321642,1759090238537,-500.0,0.00030299,2]
[388321643,1759090238547,-238.72954543,0.00030299,2]
[388321644,1759090238557,-209.84953482,0.00030299,2]
[388321645,1759090238567,-63.10124753,0.00030299,2]
[388321646,1759090238578,-267.98702886,0.00030299,2]
[388321647,1759090238588,-266.9977912,0.00030299,2]
[388321648,1759090238598,-344.37075671,0.00030299,2]
[388321649,1759090238607,-500.0,0.00030299,2]
[388321650,1759090238617,-500.0,0.00030299,2]
[388321651,1759090238627,-500.0,0.00030299,2]
[388321652,1759090238637,-500.0,0.00030299,2]
[388321653,1759090238646,-578.72207258,0.00033011,7]
[388321654,1759090238656,-578.72207258,0.00033011,7]
[388321655,1759090238666,-578.72207258,0.00033011,7]
[388321656,1759090238676,-578.72207258,0.00033011,7]
[388321658,1759090238685,-578.72207258,0.00033011,7]
[388321659,1759090238695,-578.72207258,0.00033011,7]
[388321660,1759090238704,-578.72207258,0.00033011,7]
[388321661,1759090238715,-578.72207258,0.00033011,7]
[388321662,1759090238724,-189.35579204,0.00033263,2]
[388321663,1759090238734,-23442.72693727,0.00033545,2]
[388321664,1759090238743,-8138.1900225,0.00033555,2]
[388321665,1759090238753,-7681.2049574,0.00033555,2]
[388321666,1759090238763,-1062.9618945,0.00033555,2]
[388321667,1759090238772,-7178.92443625,0.0003357,2]
[388321668,1759090240776,-0.01620733,0.0003357,2]
[388321722,1759090247065,-1789.60040581,0.0003357,2]
[388321723,1759090247075,-3045.41739785,0.0003357,2]
[388321724,1759090247094,-1679.24999186,0.0003357,2]
[388321725,1759090247103,-199.747,0.00033575,2]
[388321726,1759090247111,-150.0,0.00033575,2]
[388321727,1759090247120,-227.427,0.00033575,2]
[388321728,1759090247128,-250.0,0.00033575,2]
[388321729,1759090247137,-199.0,0.00033618,17]
[388321730,1759090247146,-160.0,0.00033636,2]
[388321731,1759090247154,-311.35,0.0003366,3]
[388321732,1759090247163,-155.68,0.0003366,3]
[388321733,1759090247172,-467.05,0.0003366,3]
[388321734,1759090247180,-845.72,0.0003366,10]
[388321735,1759090247189,-26451.425899,0.0003366,2]
[388321736,1759090247198,-160.0,0.00033669,7]
[388321737,1759090247206,-2948.20576831,0.0003367,2]
[388321738,1759090247215,-52455.78917405,0.0003367,2]
[388321739,1759090247226,-756.96927996,0.0003367,2]
[388321746,1759090387277,417.15472785,0.00025205,2]
[388321757,1759091271097,5894.3359449,0.00018,2]
[388321758,1759091271120,10000.01,0.00018,2]
[388321759,1759091271141,10000.01,0.00018,2]
[388321760,1759091271163,111.27176662,0.00018,2]
[388321765,1759091296014,8419.90498683,0.000125,2]
[388321766,1759091308850,285.5282071,0.0001,2]
[388321767,1759091309502,193.95200252,0.0002,2]
[388321768,1759091313696,989.35303693,0.00017,2]
[388321769,1759091313718,9067.48837812,0.00017,2]
[388321770,1759091323975,932.52162188,0.000215,2]
[388321771,1759091323997,2387.46632558,0.000215,2]
[388321772,1759091324052,7612.54367442,0.0002465,2]
[388321773,1759091324074,2387.46632558,0.0002465,2]
[388321775,1759091361189,151.25801289,0.00024601,2]
[388321845,1759091435291,-710.17380002,0.00026,30]
[388321846,1759091435303,-961.08758998,0.00026,30]
[388321847,1759091435312,-233.82138094,0.00029,10]
[388321848,1759091435323,-257.97484791,0.00029315,33]
[388321849,1759091435333,-748.0035394,0.00030165,2]
[388321850,1759091435342,-895.204894,0.00030255,2]
[388321851,1759091435352,-193.217235,0.00030256,60]
[388321852,1759091435361,-486.7513427,0.00030274,36]
[388321853,1759091435370,-1200.0,0.0003073,2]
[388321854,1759091435380,-747.4119274,0.00030731,2]
[388321855,1759091435389,-666.0,0.00031136,2]
[388321856,1759091435398,-613.0,0.00031722,7]
[388321857,1759091435408,-1034.50404539,0.00031748,2]
[388321859,1759091435417,-400.0,0.00031846,2]
[388321861,1759091435426,-344.30062215,0.00031846,2]
[388321863,1759091435435,-314.56536404,0.00031846,2]
[388321865,1759091435444,-500.0,0.00031846,2]
[388321867,1759091435453,-500.0,0.00031846,2]
[388321869,1759091435463,-500.0,0.00031846,2]
[388321870,1759091435472,-500.0,0.00031846,2]
[388321871,1759091435481,-500.0,0.00031846,2]
[388321872,1759091435491,-500.0,0.00031846,2]
[388321873,1759091435500,-433.7523839,0.00031846,2]
[388321874,1759091435511,-649.91150576,0.00031846,2]
[388321875,1759091435520,-500.0,0.00031846,2]
[388321876,1759091435529,-208.97798839,0.00031846,2]
[388321877,1759091435539,-500.0,0.00031846,2]
[388321878,1759091435548,-500.0,0.00031846,2]
[388321879,1759091435557,-10576.58202399,0.00031847,2]
[388321880,1759091435573,-1800.22766049,0.00031847,2]
[388321881,1759091435588,-19200.54177325,0.00031847,2]
[388321882,1759091435597,-44.89829573,0.00031848,2]
[388321883,1759091435609,-568.10170427,0.00031848,2]
[388321884,1759091435618,-71.48253519,0.00032,7]
[388321972,1759091437909,-67.35000127,0.00032,7]
[388321975,1759091437932,-10869.998045,0.00032,7]
[388321981,1759091437973,-179.27275486,0.00032,7]
[388321983,1759091437982,-179.92351734,0.00032011,2]
[388321985,1759091437993,-433.07648266,0.00032011,2]
[388321987,1759091438002,-356.92351734,0.00032795,2]
[388322063,1759091439914,-677.58052799,0.00032795,2]
[388322064,1759091439924,-510.76240416,0.00032873,2]
[388322065,1759091439934,-1005.814422,0.00032877,2]
[388322066,1759091439943,-613.0,0.00032966,2]
[388322067,1759091439952,-516.62724332,0.00032968,7]
[388322068,1759091439961,-323.67660394,0.00032968,7]
[388322069,1759091439971,-516.62724332,0.00032968,7]
[388322070,1759091439980,-516.62724332,0.00032968,7]
[388322071,1759091439989,-516.62724332,0.00032968,7]
[388322072,1759091439998,-516.62724332,0.00032968,7]
[388322073,1759091440007,-516.62724332,0.00032968,7]
[388322074,1759091440017,-516.62724332,0.00032968,7]
[388322075,1759091440026,-516.62724332,0.00032968,7]
[388322076,1759091440035,-516.62724332,0.00032968,7]
[388322077,1759091440046,-516.62724332,0.00032968,7]
[388322078,1759091440056,-516.62724332,0.00032968,7]
[388322079,1759091440065,-496.39429946,0.00032968,7]
[388322096,1759091443460,-20.23294386,0.00032968,7]
[388322097,1759091443470,-516.62724332,0.00032968,7]
[388322098,1759091443479,-516.62724332,0.00032968,7]
[388322099,1759091443489,-516.62724332,0.00032968,7]
[388322100,1759091443498,-4933.51743395,0.00032969,3]
[388322101,1759091443507,-817.56,0.0003297,10]
[388322102,1759091443517,-280.16,0.0003298,3]
[388322104,1759091443525,-840.48,0.0003298,3]
[388322106,1759091443534,-681.3,0.0003298,10]
[388322107,1759091443732,-21912.5608794,0.0003298,2]
[388322108,1759091443743,-199.0,0.00032989,14]
[388322109,1759091443752,-17391.73616216,0.0003299,2]
[388322110,1759091443763,-15687.26857606,0.0003299,2]
[388322111,1759091443774,-10287.96028363,0.0003299,2]
[388322112,1759091443792,-7200.80282826,0.0003299,2]
[388322113,1759091443801,-151.0,0.0003299,7]
[388322114,1759091443810,-6596.789385,0.0003299,7]
[388322115,1759091443819,-1222.57300493,0.0003299,7]
[388322116,1759091443830,-898.0,0.0003299,7]
[388322140,1759091446090,-500.0,0.00031846,2]
[388322141,1759091446099,-500.0,0.00031846,2]
[388322142,1759091446109,-500.0,0.00031846,2]
[388322143,1759091446118,-323.02537872,0.00031846,2]
[388322144,1759091446127,-500.0,0.00031846,2]
[388322145,1759091446136,-364.67634499,0.00031846,2]
[388322146,1759091446147,-135.32365501,0.00031846,2]
[388322147,1759091446156,-557.95742278,0.00032968,7]
[388322148,1759091446165,-557.95742278,0.00032968,7]
[388322149,1759091446174,-557.95742278,0.00032968,7]
[388322150,1759091446183,-557.95742278,0.00032968,7]
[388322151,1759091446191,-557.95742278,0.00032968,7]
[388322152,1759091446201,-557.95742278,0.00032968,7]
[388322153,1759091446210,-4476.21638007,0.0003299,7]
[388322154,1759091446219,-6596.789385,0.0003299,7]
[388322155,1759091446229,-6596.789385,0.0003299,7]
[388322156,1759091446237,-675.04771812,0.0003315,2]
[388322157,1759091446246,-675.04771812,0.00033222,2]
[388322158,1759091446255,-613.0,0.0003325,2]
[388322160,1759091446264,-613.0,0.00033252,2]
[388322161,1759091446273,-233.82138094,0.00033276,2]
[388322162,1759091446283,-189.35579204,0.00033276,2]
[388322163,1759091446292,-160.0,0.00033278,2]
[388322164,1759091446301,-675.04771812,0.00033294,2]
[388322165,1759091446310,-675.04771812,0.00033365,2]
[388322166,1759091446319,-613.0,0.00033404,7]
[388322167,1759091446330,-613.0,0.00033431,7]
[388322168,1759091446339,-478.58606775,0.00033437,2]
[388322169,1759091446382,240.58043521,0.00025205,2]
[388322170,1759091446405,234.52949749,0.00025205,2]
[388322171,1759091446417,-196.46165037,0.00033437,2]
[388322172,1759091446426,-151.0,0.00033469,2]
[388322173,1759091446435,-151.0,0.00033469,2]
[388322174,1759091446444,-151.0,0.00033469,2]
[388322175,1759091446453,-21912.5608794,0.00033506,2]
[388322176,1759091446462,-153.108758,0.00033513,7]
[388322177,1759091446470,-153.451097,0.00033513,7]
[388322178,1759091446480,-153.336519,0.00033513,7]
[388322179,1759091446489,-6596.789385,0.00033513,7]
[388322180,1759091446498,-6596.789385,0.00033513,7]
[388322181,1759091446507,-6596.789385,0.00033513,7]
[388322182,1759091446516,-6596.789385,0.00033513,7]
[388322183,1759091446526,-32386.6889108,0.00033513,2]
[388322184,1759091446758,160.0,0.00025205,2]
[388322207,1759091454196,5000.0,0.00025205,2]
[388322208,1759091462257,2066.75616404,0.00025205,2]
[388322209,1759091462280,2933.24383596,0.00025205,2]
[388322213,1759091472823,300.0,0.000252,2]
[388322215,1759091487133,5000.0,0.00025205,2]
[388322228,1759091879612,191.43,0.00018182,2]
[388322229,1759091879936,191.43,0.00018182,2]
[388322230,1759091880243,191.42,0.00018182,2]
[388322308,1759092410127,-178.57538369,0.00030913,2]
[388322313,1759092491571,2839.76949378,0.00025205,2]
[388322351,1759092635453,-1992.0,0.00031301,2]
[388322354,1759092635463,-1064.353442,0.00031343,2]
[388322356,1759092635472,-1600.0,0.0003154,3]
[388322358,1759092635481,-666.0,0.00031541,2]
[388322360,1759092635491,-160.0,0.00031797,2]
[388322362,1759092635500,-400.0,0.0003181,3]
[388322363,1759092635508,-400.0,0.00031811,3]
[388322364,1759092635517,-400.0,0.00031811,3]
[388322365,1759092635526,-400.0,0.00031811,3]
[388322367,1759092635535,-400.0,0.00031811,2]
[388322368,1759092635545,-777.08499251,0.00031898,2]
[388322371,1759092635554,-10000.01,0.00031898,2]
[388322373,1759092635564,-1996.56077045,0.00032,120]
[388322374,1759092635573,-199.0,0.00032009,14]
[388322377,1759092635582,-1996.56077045,0.000323,120]
[388322380,1759092635591,-1326.0,0.00032513,2]
[388322382,1759092635600,-199.0,0.00032557,15]
[388322385,1759092635609,-1996.56077045,0.000326,120]
[388322388,1759092635618,-383.07180312,0.00032663,2]
[388322391,1759092635627,-168.0,0.00032871,2]
[388322393,1759092635638,-186.692,0.00032871,33]
[388322396,1759092635647,-955.5237,0.00032877,2]
[388322398,1759092635657,-777.08499249,0.00032963,2]
[388322400,1759092635666,-1000.0,0.0003298,7]
[388322401,1759092635675,-916.78,0.0003298,5]
[388322404,1759092635685,-1996.56077045,0.00033,120]
[388322406,1759092635695,-400.0,0.00033,3]
[388322407,1759092635704,-279.628754,0.00033,2]
[388322409,1759092635714,-199.0,0.00033105,16]
[388322412,1759092635723,-160.0,0.00033202,2]
[388322413,1759092635732,-160.0,0.00033205,2]
[388322416,1759092635741,-233.82138094,0.00033205,2]
[388322417,1759092635750,-160.0,0.00033205,2]
[388322419,1759092635760,-189.35579204,0.00033205,2]
[388322422,1759092635769,-928.31372363,0.0003323,2]
[388322425,1759092635787,-45.24887377,0.0003323,2]
[388322426,1759092635796,-714.14912623,0.000333,120]
[388322429,1759092635808,-640.79212053,0.000333,120]
[388322431,1759092635819,-456.47960642,0.000333,120]
[388322433,1759092635829,-185.13991727,0.000333,120]
[388322435,1759092635838,-122.4861003,0.00033313,2]
[388322655,1759092639900,-500.0,0.00031997,2]
[388322656,1759092639909,-500.0,0.00031997,2]
[388322657,1759092639918,-500.0,0.00031997,2]
[388322658,1759092639927,-398.66609697,0.00031997,2]
[388322659,1759092639937,-500.0,0.00031997,2]
[388322660,1759092639946,-500.0,0.00031997,2]
[388322661,1759092639955,-500.0,0.00031997,2]
[388322662,1759092639964,-500.0,0.00031997,2]
[388322663,1759092639973,-500.0,0.00031997,2]
[388322664,1759092639984,-500.0,0.00031997,2]
[388322665,1759092639993,-220.59077523,0.00031997,2]
[388322666,1759092640008,-279.40922477,0.00031997,2]
[388322667,1759092640017,-73.36055914,0.00031997,2]
[388322668,1759092640042,-426.63944086,0.00031997,2]
[388322669,1759092640052,-296.7283266,0.00031997,2]
[388322746,1759092643134,-203.2716734,0.00031997,2]
[388322748,1759092643143,-500.0,0.00031997,2]
[388322750,1759092643154,-523.02976573,0.00031997,2]
[388322752,1759092643163,-500.0,0.00031997,2]
[388322754,1759092643171,-391.1240951,0.00031997,2]
[388322847,1759092646034,-108.8759049,0.00031997,2]
[388322848,1759092646044,-500.0,0.00031997,2]
[388322849,1759092646053,-243.37523839,0.00031997,2]
[388322850,1759092646062,-500.0,0.00031997,2]
[388322851,1759092646071,-87.74885671,0.00031997,2]
[388322852,1759092646083,-82.35902592,0.00031997,2]
[388322853,1759092646092,-500.0,0.00031997,2]
[388322854,1759092646101,-500.0,0.00031997,2]
[388322855,1759092646110,-214.02967422,0.00031997,2]
[388322856,1759092646119,-500.0,0.00031997,2]
[388322857,1759092646128,-500.0,0.00031997,2]
[388322858,1759092646137,-500.0,0.00031997,2]
[388322859,1759092646147,-500.0,0.00031997,2]
[388322860,1759092646156,-500.0,0.00031997,2]
[388322861,1759092646165,-4006.83376109,0.00033313,2]
[388322862,1759092646177,-6882.73564126,0.00033313,2]
[388322863,1759092646381,-1339.99,0.00033323,2]
[388322864,1759092646394,-567.75,0.00033383,10]
[388322865,1759092646405,-473.12,0.00033383,10]
[388322866,1759092646415,-1000.0,0.0003339,7]
[388322867,1759092646424,-356.8215365,0.00033391,7]
[388322868,1759092646433,-500.0,0.00033391,7]
[388322869,1759092646442,-500.0,0.00033391,7]
[388322870,1759092646451,-217.44475013,0.00033391,7]
[388322871,1759092646461,-500.0,0.00033391,7]
[388322872,1759092646471,-500.0,0.00033391,7]
[388322873,1759092646480,-500.0,0.00033391,7]
[388322874,1759092646488,-500.0,0.00033391,7]
[388322875,1759092646497,-497.03192436,0.00033391,7]
[388322894,1759092937303,271.48,0.000249,2]
[388322897,1759093075893,3568.49160413,0.00025205,2]
[388322898,1759093203758,210.16480614,0.00025205,2]
[388322899,1759093265944,160.0,0.00025205,2]
[388322904,1759093614241,-166.94193177,0.00031225,2]
[388322905,1759093631116,-233.19067492,0.00030378,2]
[388322923,1759093832164,-1142.94754278,0.00030378,2]
[388322924,1759093832174,-1434.0,0.00031224,3]
[388322925,1759093832183,-4519.17669583,0.00031225,2]
[388322926,1759093832192,-200.0,0.00031237,3]
[388322927,1759093832204,-200.0,0.00031237,3]
[388322928,1759093832217,-400.0,0.00031237,2]
[388322929,1759093832226,-666.0,0.00031239,2]
[388322930,1759093832235,-840.552219,0.00031292,2]
[388322931,1759093832244,-500.0,0.00031579,2]
[388322932,1759093832253,-500.0,0.00031579,2]
[388322933,1759093832262,-500.0,0.00031579,2]
[388322934,1759093832272,-231.2413579,0.00031579,2]
[388322935,1759093832281,-632.44965706,0.00031579,2]
[388322936,1759093832291,-185.56754251,0.00031579,2]
[388322937,1759093832301,-500.0,0.00031579,2]
[388322938,1759093832310,-500.0,0.00031579,2]
[388322939,1759093832319,-500.0,0.00031579,2]
[388322940,1759093832328,-500.0,0.00031579,2]
[388322941,1759093832338,-494.31541447,0.00031579,2]
[388322942,1759093832347,-500.0,0.00031579,2]
[388322943,1759093832357,-500.0,0.00031579,2]
[388322944,1759093832366,-246.00329714,0.00031579,2]
[388322945,1759093832376,-14660.65920449,0.0003158,2]
[388322946,1759093832403,-1120.52656791,0.0003158,2]
[388322947,1759093832413,-582.81374442,0.00031821,2]
[388322948,1759093832423,-633.2063346,0.00031921,2]
[388322949,1759093832433,-169.68552686,0.00032,120]
[388322950,1759093832443,-169.68552686,0.000323,120]
[388322951,1759093832452,-168.0,0.00032583,2]
[388322952,1759093832462,-169.68552686,0.000326,120]
[388322953,1759093832471,-38.97136068,0.00032659,2]
[388322954,1759093832482,-248.33249166,0.00032659,2]
[388322955,1759093832492,-1305.8752058,0.00032771,2]
[388322956,1759093832501,-11029.6989189,0.00032771,2]
[388322957,1759093832510,-3391.7251946,0.00032771,2]
[388322958,1759093832519,-582.81374436,0.00032819,2]
[388322960,1759093832528,-199.0,0.00032875,14]
[388322962,1759093832537,-164.29,0.00032876,33]
[388322964,1759093832546,-942.07476,0.00032877,2]
[388322966,1759093832555,-1000.0,0.00032979,7]
[388322968,1759093832565,-1000.0,0.00032989,7]
[388322970,1759093832574,-169.68552686,0.00033,120]
[388322972,1759093832583,-979.0,0.00033029,2]
[388322974,1759093832592,-2161.0,0.00033029,2]
[388322976,1759093832601,-635.0,0.00033029,2]
[388322978,1759093832611,-410.0,0.00033029,2]
[388322980,1759093832621,-425.659,0.00033029,2]
[388322982,1759093832630,-727.74821781,0.00033126,7]
[388323143,1759093838041,-264.05001818,0.00033126,7]
[388323144,1759093838052,-160.0,0.00033196,2]
[388323145,1759093838061,-75.94998182,0.00033196,2]
[388323146,1759093838073,-157.87139912,0.00033196,2]
[388323147,1759093838082,-189.35579204,0.00033196,2]
[388323148,1759093838091,-162.09293471,0.000332,2]
[388323149,1759093838103,-725.02279502,0.000332,2]
[388323150,1759093838114,-6454.25460537,0.000332,2]
[388323151,1759093838124,-539.26,0.00033262,10]
[388323152,1759093838134,-517.26503189,0.0003327,7]
[388323153,1759093838143,-527.56499121,0.0003327,7]
[388323154,1759093838153,-527.56499121,0.0003327,7]
[388323155,1759093838162,-286.30953152,0.0003327,7]
[388323156,1759093838171,-527.56499121,0.0003327,7]
[388323157,1759093838181,-527.56499121,0.0003327,7]
[388323158,1759093838190,-527.56499121,0.0003327,7]
[388323159,1759093838200,-527.56499121,0.0003327,7]
[388323160,1759093838210,-527.56499121,0.0003327,7]
[388323161,1759093838219,-527.56499121,0.0003327,7]
[388323162,1759093838229,-527.56499121,0.0003327,7]
[388323163,1759093838239,-527.56499121,0.0003327,7]
[388323164,1759093838249,-527.56499121,0.0003327,7]
[388323165,1759093838259,-3207.60241934,0.00033271,2]
[388323166,1759093838269,-529.99,0.00033272,3]
[388323167,1759093838278,-265.0,0.00033272,3]
[388323168,1759093838288,-795.01,0.00033272,3]
[388323169,1759093838297,-153.186584,0.00033272,7]
[388323170,1759093838307,-3958.073631,0.00033272,7]
[388323171,1759093838316,-2810.4269299,0.00033272,7]
[388323172,1759093838327,-1147.6467011,0.00033272,7]
[388323173,1759093838337,-3958.073631,0.00033272,7]
[388323174,1759093838347,-3958.073631,0.00033272,7]
[388323175,1759093838356,-151.0,0.00033272,7]
[388323176,1759093838365,-151.0,0.00033272,7]
[388323177,1759093838375,-151.0,0.00033272,7]
[388323178,1759093838386,-151.0,0.00033272,7]
[388323179,1759093838397,-151.0,0.00033272,7]
[388323180,1759093838407,-204.09941,0.00033272,7]
[388323181,1759093838416,-9169.08739001,0.00033272,2]
[388323194,1759093840107,-5544.36,0.00033272,2]
[388323195,1759093840118,-440.22699263,0.00033272,2]
[388323321,1759093843198,-282.54223478,0.00033272,10]
[388323331,1759093843288,-195.03776522,0.00033272,10]
[388323333,1759093843298,-151.0,0.00033272,7]
[388323335,1759093843308,-151.0,0.00033272,7]
[388323338,1759093843317,-2877.36223478,0.00033272,2]
[388323403,1759093843901,300.52225579,0.00033982,120]
[388323459,1759093846449,-151.0,0.00033272,7]
[388323460,1759093846458,-151.0,0.00033272,7]
[388323461,1759093846471,-75.64327578,0.00033272,2]
[388323462,1759093846480,-151.0,0.00033282,7]
[388323463,1759093846489,-151.0,0.00033282,7]
[388323464,1759093846500,-151.0,0.00033282,7]
[388323465,1759093846509,-59.55695388,0.00033282,7]
[388323515,1759094830273,-167.31906749,0.00029999,2]
[388323516,1759094870096,5789.87358973,0.00018,2]
[388323517,1759094870117,8625.16692808,0.00018,2]
[388323525,1759094903025,240.58043521,0.00025205,2]
[388323527,1759094915078,1134.26263671,0.00015,2]
[388323528,1759094915347,10000.01,0.00015,2]
[388323529,1759094915368,909.45253422,0.00015,2]
[388323531,1759094917596,9090.55746578,0.00018,2]
[388323532,1759094917617,10000.01,0.00018,2]
[388323533,1759094917639,606.57290761,0.00018,2]
[388323534,1759094919849,67066.72550856,0.00033981,60]
[388323555,1759095032615,-300.0,0.00029999,2]
[388323556,1759095032625,-7916.81483353,0.0003,3]
[388323569,1759095032896,-581.733521,0.00031395,2]
[388323572,1759095032912,-160.0,0.00031928,2]
[388323574,1759095032921,-6301.7102369,0.00031944,2]
[388323576,1759095032931,-666.0,0.00031948,2]
[388323578,1759095032940,-169.68552687,0.00032,120]
[388323580,1759095032950,-613.0,0.00032324,2]
[388323582,1759095032959,-129.30370666,0.00032332,2]
[388323694,1759095038248,-290.69629334,0.00032332,2]
[388323695,1759095038261,-613.0,0.0003242,2]
[388323696,1759095038274,-613.0,0.00032628,7]
[388323697,1759095038286,-613.0,0.00032753,2]
[388323698,1759095038297,-168.0,0.00032782,2]
[388323699,1759095038308,-613.0,0.00032872,2]
[388323700,1759095038320,-410.84075698,0.00032876,7]
[388323701,1759095038331,-927.581904,0.00032877,2]
[388323702,1759095038342,-500.0,0.00032892,7]
[388323703,1759095038354,-611.8553103,0.00032892,7]
[388323704,1759095038365,-500.0,0.00032892,7]
[388323705,1759095038375,-500.0,0.00032892,7]
[388323706,1759095038387,-221.74667835,0.00032892,7]
[388323708,1759095038398,-500.0,0.00032892,7]
[388323709,1759095038409,-92.53298313,0.00032892,7]
[388323710,1759095038433,-407.46701687,0.00032892,7]
[388323711,1759095038445,-500.0,0.00032892,7]
[388323712,1759095038456,-551.47236554,0.00032892,7]
[388323713,1759095038467,-500.0,0.00032892,7]
[388323714,1759095038479,-500.0,0.00032892,7]
[388323715,1759095038491,-500.0,0.00032892,7]
[388323716,1759095038502,-500.0,0.00032892,7]
[388323717,1759095038514,-500.0,0.00032892,7]
[388323718,1759095038526,-500.0,0.00032892,7]
[388323719,1759095038538,-500.0,0.00032892,7]
[388323720,1759095038549,-110.37918921,0.00032892,7]
[388323906,1759095043402,-389.2038067,0.0003167,2]
[388323907,1759095043412,-405.25611947,0.00032892,7]
[388323908,1759095043422,-500.0,0.00032892,7]
[388323909,1759095043431,-500.0,0.00032892,7]
[388323910,1759095043440,-452.98012144,0.00032892,7]
[388323911,1759095043449,-500.0,0.00032892,7]
[388323912,1759095043458,-500.0,0.00032892,7]
[388323913,1759095043467,-500.0,0.00032892,7]
[388323915,1759095043477,-456.87395191,0.00032892,7]
[388323917,1759095043486,-500.0,0.00032892,7]
[388323918,1759095043495,-500.0,0.00032892,7]
[388323920,1759095043505,-500.0,0.00032892,7]
[388323921,1759095043515,-500.0,0.00032892,7]
[388323923,1759095043524,-500.0,0.00032892,7]
[388323925,1759095043533,-500.0,0.00032892,7]
[388323926,1759095043542,-500.0,0.00032892,7]
[388323927,1759095043551,-500.0,0.00032892,7]
[388323928,1759095043561,-500.0,0.00032892,7]
[388323929,1759095043570,-500.0,0.00032892,7]
[388323930,1759095043580,-500.0,0.00032892,7]
[388323932,1759095043589,-500.0,0.00032892,7]
[388323933,1759095043599,-500.0,0.00032892,7]
[388323934,1759095043607,-392.43017916,0.00032892,7]
[388323935,1759095043627,-107.56982084,0.00032892,7]
[388323936,1759095043636,-196.24077294,0.00032892,7]
[388323937,1759095046314,-303.75922706,0.00032892,7]
[388323938,1759095046324,-500.0,0.00032892,7]
[388323939,1759095046333,-500.0,0.00032892,7]
[388323940,1759095046343,-500.0,0.00032892,7]
[388323941,1759095046353,-500.0,0.00032892,7]
[388323942,1759095046362,-496.24077294,0.00032892,7]
[388323943,1759095046429,-3.75922706,0.00032892,7]
[388323944,1759095046438,-500.0,0.00032892,7]
[388323945,1759095046447,-500.0,0.00032892,7]
[388323946,1759095046456,-500.0,0.00032892,7]
[388323947,1759095046465,-500.0,0.00032892,7]
[388323949,1759095046474,-199.30767258,0.00032892,7]
[388323952,1759095046908,-289.74095477,0.00032892,7]
[388323953,1759095046917,-500.0,0.00032892,7]
[388323954,1759095046927,-500.0,0.00032892,7]